{"text_format":"1","workbook":"xlsx","n_sheets":9,"sheets":["Sheet1","plus","minus","multiplication","division","exponent","percentage","vba calculation","percentage (2)"],"not_rendered":{"charts":0,"images":0,"macros":1,"external_links":0,"defined_names":0,"comments":0,"pivot_tables":0},"unopened":[],"bounds":{"document_bytes":16777216,"sheet_cells":100000,"rows_first":2000,"rows_last":500,"rows_between":2000,"halvings":0,"cell_chars":16384,"cell_head_chars":4096},"cells_cut":0,"cells_raw":0,"read":"whole","date_system":"1900"}

{"sheet":"Sheet1","index":0,"n_rows":10,"n_cols":6,"rows_kept":10,"cut":false,"hidden":false,"merged":[[1,1,1,5]]}
[]
[null,"Arithmetic Operators in Excel"]
[]
[null,"Symbols","Operator","Description","Application","Results"]
[null,"+","Plus","Adds two or more numbers",{"$f":"_xlfn.FORMULATEXT(F5)","v":"=8+2"},{"$f":"8+2","v":10}]
[null,"-","Minus","Subtracts two or more numbers",{"$f":"_xlfn.FORMULATEXT(F6)","v":"=8-2"},{"$f":"8-2","v":6}]
[null,"*","Asterisk","Multiplies two or more numbers","=8*2",{"$f":"8*2","v":16}]
[null,"/","Forward Slash","Divides two numbers","=8/2",{"$f":"8/2","v":4}]
[null,"^","Caret","Returns the power of a number","=8^2",{"$f":"8^2","v":64}]
[null,"%","Percent","Shows decimal values in precentage","=2/8",{"$f":"2/8","v":0.25}]

{"sheet":"plus","index":1,"n_rows":10,"n_cols":4,"rows_kept":10,"cut":false,"hidden":false,"merged":[[1,1,1,3],[5,1,5,2],[8,1,8,2],[9,1,9,2],[6,1,6,2]]}
[]
[null,"Use of Plus (+) Operator"]
[]
[null,"Numbers",8,3]
[]
[null,"Sum by Hard Coding",null,"Formula"]
[null,{"$f":"8+3","v":11},null,{"$f":"_xlfn.FORMULATEXT(B7)","v":"=8+3"}]
[]
[null,"Sum by Cell Reference",null,"Formula"]
[null,{"$f":"C4+D4","v":11},null,{"$f":"_xlfn.FORMULATEXT(B10)","v":"=C4+D4"}]

{"sheet":"minus","index":2,"n_rows":10,"n_cols":4,"rows_kept":10,"cut":false,"hidden":false,"merged":[[1,1,1,3],[5,1,5,2],[6,1,6,2],[8,1,8,2],[9,1,9,2]]}
[]
[null,"Use of Minus (-) Operator"]
[]
[null,"Numbers",8,3]
[]
[null,"Subtraction by Hard Coding",null,"Formula"]
[null,{"$f":"8+(-3)","v":5},null,{"$f":"_xlfn.FORMULATEXT(B7)","v":"=8+(-3)"}]
[]
[null,"Subtraction by Cell Reference",null,"Formula"]
[null,{"$f":"C4-D4","v":5},null,{"$f":"_xlfn.FORMULATEXT(B10)","v":"=C4-D4"}]

{"sheet":"multiplication","index":3,"n_rows":10,"n_cols":4,"rows_kept":10,"cut":false,"hidden":false,"merged":[[1,1,1,3],[5,1,5,2],[6,1,6,2],[8,1,8,2],[9,1,9,2]]}
[]
[null,"Use of Multiplication (*) Operator"]
[]
[null,"Numbers",8,3]
[]
[null,"Multiplication by Hard Coding",null,"Formula"]
[null,{"$f":"8*3","v":24},null,{"$f":"_xlfn.FORMULATEXT(B7)","v":"=8*3"}]
[]
[null,"Multiplication by Cell Reference",null,"Formula"]
[null,{"$f":"C4*D4","v":24},null,{"$f":"_xlfn.FORMULATEXT(B10)","v":"=C4*D4"}]

{"sheet":"division","index":4,"n_rows":10,"n_cols":4,"rows_kept":10,"cut":false,"hidden":false,"merged":[[1,1,1,3],[5,1,5,2],[6,1,6,2],[8,1,8,2],[9,1,9,2]]}
[]
[null,"Use of Division (/) Operator"]
[]
[null,"Numbers",8,3]
[]
[null,"Division by Hard Coding",null,"Formula"]
[null,{"$f":"8/3","v":2.6666666666666665},null,{"$f":"_xlfn.FORMULATEXT(B7)","v":"=8/3"}]
[]
[null,"Division by Cell Reference",null,"Formula"]
[null,{"$f":"C4/D4","v":2.6666666666666665},null,{"$f":"_xlfn.FORMULATEXT(B10)","v":"=C4/D4"}]

{"sheet":"exponent","index":5,"n_rows":10,"n_cols":4,"rows_kept":10,"cut":false,"hidden":false,"merged":[[1,1,1,3],[5,1,5,2],[6,1,6,2],[8,1,8,2],[9,1,9,2]]}
[]
[null,"Use of Exponent (^) Operator"]
[]
[null,"Numbers",8,3]
[]
[null,"Exponent by Hard Coding",null,"Formula"]
[null,{"$f":"8^3","v":512},null,{"$f":"_xlfn.FORMULATEXT(B7)","v":"=8^3"}]
[]
[null,"Exponent by Cell Reference",null,"Formula"]
[null,{"$f":"C4^D4","v":512},null,{"$f":"_xlfn.FORMULATEXT(B10)","v":"=C4^D4"}]

{"sheet":"percentage","index":6,"n_rows":5,"n_cols":3,"rows_kept":5,"cut":false,"hidden":false,"merged":[[1,1,1,2]]}
[]
[null,"Use of Percentage (%) Operator"]
[]
[null,"General Format","Fraction of Hundred"]
[null,0.08,{"$f":"8/100","v":0.08}]

{"sheet":"vba calculation","index":7,"n_rows":10,"n_cols":4,"rows_kept":10,"cut":false,"hidden":false,"merged":[[1,1,1,3]]}
[]
[null,"VBA Arithmetic Operator"]
[]
[null,"Numbers",100,32]
[]
[null,"Addition"]
[null,"Subtraction"]
[null,"Multiplication"]
[null,"Division"]
[null,"Remainder"]

{"sheet":"percentage (2)","index":8,"n_rows":14,"n_cols":4,"rows_kept":14,"cut":false,"hidden":false,"merged":[[1,1,1,3],[3,1,3,2],[9,1,9,3]]}
[]
[null,"Combining Arithmetic Operators"]
[]
[null,"Arithmetic Expression with Numbers"]
[null,"Returning Value","Arithmetic Expression"]
[null,{"$f":"2+3*6","v":20},{"$f":"_xlfn.FORMULATEXT(B6)","v":"=2+3*6"}]
[null,{"$f":"5-7/3+2^3","v":10.666666666666666},{"$f":"_xlfn.FORMULATEXT(B7)","v":"=5-7/3+2^3"}]
[null,{"$f":"(4-9*7)/(3-2^3+4)","v":59},{"$f":"_xlfn.FORMULATEXT(B8)","v":"=(4-9*7)/(3-2^3+4)"}]
[]
[null,"Arithmetic Expression with Cell Reference"]
[null,"Numbers","Returning Value","Formula"]
[null,23,{"$f":"B12+B13/B14","v":25.833333333333332},{"$f":"_xlfn.FORMULATEXT(C12)","v":"=B12+B13/B14"}]
[null,34,{"$f":"B13+B14-B12*B14","v":-230},{"$f":"_xlfn.FORMULATEXT(C13)","v":"=B13+B14-B12*B14"}]
[null,12,{"$f":"(B13+B12-B14*3)/B13","v":0.61764705882352944},"=(B13+B12-B14*3)/B13"]